[Event "*** Titled Tuesday Blitz"]
[Site "Chess.com"]
[Date "2020.11.24"]
[Round "4"]
[White "baki83"]
[Black "Jumbo"]
[Result "1-0"]
[WhiteElo "2744"]
[BlackElo "2842"]
[TimeControl "180+1"]
[EndTime "10:56:34 PST"]
[Termination "baki83 won by resignation"]

1. e4 {[%clk 0:03:00.9]} 1... c5 {[%clk 0:02:57.7]} 2. Nf3 {[%clk 0:03:00.9]}
2... d6 {[%clk 0:02:57.7]} 3. Bb5+ {[%clk 0:03:00.4]} 3... Bd7 {[%clk
0:02:55.8]} 4. Bxd7+ {[%clk 0:02:59.7]} 4... Nxd7 {[%clk 0:02:56.3]} 5. O-O
{[%clk 0:02:58.7]} 5... Ngf6 {[%clk 0:02:56.7]} 6. Qe2 {[%clk 0:02:57.7]} 6...
e6 {[%clk 0:02:56.3]} 7. d4 {[%clk 0:02:57.2]} 7... cxd4 {[%clk 0:02:55.3]} 8.
Nxd4 {[%clk 0:02:58.1]} 8... Be7 {[%clk 0:02:53.6]} 9. c4 {[%clk 0:02:57.7]}
9... O-O {[%clk 0:02:52.2]} 10. b3 {[%clk 0:02:57.2]} 10... Qa5 {[%clk
0:02:47.4]} 11. Bb2 {[%clk 0:02:56]} 11... a6 {[%clk 0:02:47.2]} 12. Nc3 {[%clk
0:02:55]} 12... Rac8 {[%clk 0:02:42.9]} 13. Rfd1 {[%clk 0:02:43.8]} 13... Rfe8
{[%clk 0:02:39.5]} 14. Rac1 {[%clk 0:02:39.7]} 14... Bf8 {[%clk 0:02:12.1]} 15.
Qd2 {[%clk 0:02:19.5]} 15... Qh5 {[%clk 0:02:07.8]} 16. h3 {[%clk 0:02:16.1]}
16... Qg6 {[%clk 0:01:48.4]} 17. Re1 {[%clk 0:02:14.6]} 17... Nc5 {[%clk
0:01:38]} 18. Qe3 {[%clk 0:02:08.7]} 18... h5 {[%clk 0:01:32.8]} 19. Nf3 {[%clk
0:01:59.8]} 19... Ncd7 {[%clk 0:01:26.1]} 20. Rcd1 {[%clk 0:01:52.4]} 20... Rc7
{[%clk 0:01:17]} 21. Ba3 {[%clk 0:01:39]} 21... Rc6 {[%clk 0:01:03]} 22. Nd4
{[%clk 0:01:32.7]} 22... Rc7 {[%clk 0:01:02.5]} 23. Nf3 {[%clk 0:01:26]} 23...
Rc6 {[%clk 0:01:02.2]} 24. Ne2 {[%clk 0:01:16.1]} 24... Rec8 {[%clk 0:00:54.3]}
25. Nf4 {[%clk 0:01:11.5]} 25... Qh6 {[%clk 0:00:53.8]} 26. Bc1 {[%clk
0:01:01.8]} 26... b5 {[%clk 0:00:44.5]} 27. Qe2 {[%clk 0:00:53.7]} 27... g5
{[%clk 0:00:26]} 28. Nd3 {[%clk 0:00:43.8]} 28... bxc4 {[%clk 0:00:20.9]} 29.
bxc4 {[%clk 0:00:44.7]} 29... Rxc4 {[%clk 0:00:18.4]} 30. Bxg5 {[%clk
0:00:42.8]} 30... Qg6 {[%clk 0:00:18.1]} 31. e5 {[%clk 0:00:37]} 31... Nd5
{[%clk 0:00:15.8]} 32. h4 {[%clk 0:00:32.9]} 32... Rc2 {[%clk 0:00:13.8]} 33.
Qf1 {[%clk 0:00:28.4]} 33... Nc3 {[%clk 0:00:10.4]} 34. Nf4 {[%clk 0:00:20.5]}
34... Qf5 {[%clk 0:00:08.5]} 35. Nxh5 {[%clk 0:00:18.6]} 35... Nxd1 {[%clk
0:00:07.4]} 36. Rxd1 {[%clk 0:00:19]} 36... R2c4 {[%clk 0:00:05.2]} 37. exd6
{[%clk 0:00:16.9]} 37... Rg4 {[%clk 0:00:04]} 38. Ng3 {[%clk 0:00:16.5]} 38...
Qb5 {[%clk 0:00:03.5]} 39. Qe1 {[%clk 0:00:15.6]} 39... Rc2 {[%clk 0:00:02.7]}
40. Qe3 {[%clk 0:00:14.6]} 40... Qc4 {[%clk 0:00:02.1]} 41. Nf1 {[%clk
0:00:13.1]} 41... Qxa2 {[%clk 0:00:02.3]} 42. N1h2 {[%clk 0:00:12]} 42... Re2
{[%clk 0:00:02.4]} 43. Qa7 {[%clk 0:00:09.3]} 43... Rge4 {[%clk 0:00:02.1]} 44.
Qxd7 {[%clk 0:00:09.2]} 44... Rxf2 {[%clk 0:00:02.7]} 45. Kh1 {[%clk 0:00:08.6]}
45... Rxg2 {[%clk 0:00:03.3]} 46. Qd8 {[%clk 0:00:07.4]} 46... Ree2 {[%clk
0:00:03.8]} 47. Bf4 {[%clk 0:00:06.5]} 47... Rgf2 {[%clk 0:00:03.6]} 48. Rg1+
{[%clk 0:00:05.6]} 48... Rg2 {[%clk 0:00:03.8]} 49. d7 {[%clk 0:00:04.5]} 49...
Rxg1+ {[%clk 0:00:03.8]} 50. Nxg1 {[%clk 0:00:04.6]} 50... Qd5+ {[%clk
0:00:04.3]} 51. Nhf3 {[%clk 0:00:03.6]} 51... Re4 {[%clk 0:00:03.8]} 52. Qc8
{[%clk 0:00:02.2]} 52... Rxf4 {[%clk 0:00:02.5]} 53. d8=Q {[%clk 0:00:01.9]}
53... Qxd8 {[%clk 0:00:02]} 54. Qxd8 {[%clk 0:00:01.9]} 54... Rf5 {[%clk
0:00:02.4]} 55. Qe8 {[%clk 0:00:01.7]} 55... a5 {[%clk 0:00:02.8]} 56. Qa8
{[%clk 0:00:02.2]} 56... Rd5 {[%clk 0:00:02.7]} 57. Kg2 {[%clk 0:00:02.6]} 57...
Kg7 {[%clk 0:00:03.1]} 58. Nh3 {[%clk 0:00:03]} 58... Bb4 {[%clk 0:00:03.4]} 59.
Nf4 {[%clk 0:00:03.3]} 1-0

[Event "*** Titled Tuesday Blitz"]
[Site "Chess.com"]
[Date "2020.11.24"]
[Round "4"]
[White "Firegrizzly"]
[Black "InitiatingASC"]
[Result "1-0"]
[WhiteElo "2609"]
[BlackElo "2444"]
[TimeControl "180+1"]
[EndTime "10:56:34 PST"]
[Termination "Firegrizzly won by resignation"]

1. d4 {[%clk 0:03:00.9]} 1... Nf6 {[%clk 0:02:59.5]} 2. Nf3 {[%clk 0:03:01.8]}
2... e6 {[%clk 0:02:59.4]} 3. Bg5 {[%clk 0:03:01.4]} 3... b6 {[%clk 0:02:53.9]}
4. e4 {[%clk 0:03:00.5]} 4... Be7 {[%clk 0:02:52.5]} 5. e5 {[%clk 0:02:58.4]}
5... Nd5 {[%clk 0:02:52.2]} 6. Bxe7 {[%clk 0:02:58.7]} 6... Nxe7 {[%clk
0:02:52.3]} 7. Nc3 {[%clk 0:02:56.4]} 7... Bb7 {[%clk 0:02:52.5]} 8. h4 {[%clk
0:02:54.5]} 8... Nd5 {[%clk 0:02:46.9]} 9. Ne2 {[%clk 0:02:49.6]} 9... Nc6
{[%clk 0:02:43.3]} 10. h5 {[%clk 0:02:44.1]} 10... b5 {[%clk 0:02:39.7]} 11. Qd2
{[%clk 0:02:42.5]} 11... Qe7 {[%clk 0:02:37.4]} 12. Ng3 {[%clk 0:02:41]} 12...
a6 {[%clk 0:02:36.9]} 13. Be2 {[%clk 0:02:34.1]} 13... Nb6 {[%clk 0:02:35.2]}
14. c3 {[%clk 0:02:31]} 14... Na5 {[%clk 0:02:23.1]} 15. b3 {[%clk 0:02:29.3]}
15... Nc6 {[%clk 0:02:23]} 16. O-O {[%clk 0:02:26.3]} 16... d6 {[%clk
0:02:13.7]} 17. h6 {[%clk 0:02:19.2]} 17... g6 {[%clk 0:02:06.6]} 18. a4 {[%clk
0:02:16.3]} 18... bxa4 {[%clk 0:02:01.5]} 19. bxa4 {[%clk 0:02:16.7]} 19... Na5
{[%clk 0:01:59.4]} 20. Rab1 {[%clk 0:02:14.8]} 20... Bxf3 {[%clk 0:01:51.1]} 21.
Bxf3 {[%clk 0:02:14.1]} 21... Nac4 {[%clk 0:01:50.4]} 22. Qe2 {[%clk 0:02:10.2]}
22... d5 {[%clk 0:01:50.2]} 23. Qa2 {[%clk 0:01:56.4]} 23... Qa3 {[%clk
0:01:32.8]} 24. Qxa3 {[%clk 0:01:56.2]} 24... Nxa3 {[%clk 0:01:32.5]} 25. Ra1
{[%clk 0:01:57.1]} 25... Nac4 {[%clk 0:01:31.7]} 26. a5 {[%clk 0:01:57]} 26...
Nd7 {[%clk 0:01:24.7]} 27. Be2 {[%clk 0:01:57.5]} 27... Nd2 {[%clk 0:00:40.1]}
28. Rfd1 {[%clk 0:01:55.6]} 28... Ne4 {[%clk 0:00:40]} 29. Nxe4 {[%clk 0:01:54]}
29... dxe4 {[%clk 0:00:40.5]} 30. Rab1 {[%clk 0:01:50.4]} 30... Ke7 {[%clk
0:00:34.8]} 31. Rb7 {[%clk 0:01:49.4]} 31... Rhc8 {[%clk 0:00:32.4]} 32. Rdb1
{[%clk 0:01:47.3]} 32... f5 {[%clk 0:00:28.5]} 33. exf6+ {[%clk 0:01:44.2]}
33... Nxf6 {[%clk 0:00:25]} 34. c4 {[%clk 0:01:43.1]} 34... Kd6 {[%clk
0:00:23.6]} 35. R7b2 {[%clk 0:01:34.2]} 35... Ng8 {[%clk 0:00:22.6]} 36. f3
{[%clk 0:01:31.6]} 36... e3 {[%clk 0:00:20.5]} 37. f4 {[%clk 0:01:31]} 37...
Nxh6 {[%clk 0:00:20.4]} 38. Bf3 {[%clk 0:01:29.5]} 38... Ra7 {[%clk 0:00:20.8]}
39. c5+ {[%clk 0:01:28.7]} 39... Kd7 {[%clk 0:00:19.3]} 40. Rb8 {[%clk
0:01:26.8]} 40... Nf5 {[%clk 0:00:17.7]} 41. c6+ {[%clk 0:01:15.1]} 41... Kd8
{[%clk 0:00:17.3]} 42. d5 {[%clk 0:01:15.6]} 42... exd5 {[%clk 0:00:13.2]} 43.
Bxd5 {[%clk 0:01:15.4]} 43... Nd4 {[%clk 0:00:12.6]} 44. Kf1 {[%clk 0:01:13.2]}
44... Nb5 {[%clk 0:00:12.5]} 45. Rb7 {[%clk 0:01:11.2]} 45... Raa8 {[%clk
0:00:08.1]} 46. Be6 {[%clk 0:01:08.9]} 46... Rcb8 {[%clk 0:00:07.2]} 47. Rd1+
{[%clk 0:01:07]} 47... Ke7 {[%clk 0:00:07]} 48. Bg4 {[%clk 0:01:04.8]} 48...
Rxb7 {[%clk 0:00:07.3]} 49. cxb7 {[%clk 0:01:04.3]} 49... Rb8 {[%clk 0:00:08.2]}
50. Bc8 {[%clk 0:01:03.7]} 50... Nd6 {[%clk 0:00:07.5]} 51. Rc1 {[%clk
0:00:54.7]} 51... Kd8 {[%clk 0:00:07]} 52. Ke2 {[%clk 0:00:53.9]} 52... Nxc8
{[%clk 0:00:06.8]} 53. bxc8=Q+ {[%clk 0:00:53.1]} 53... Kxc8 {[%clk 0:00:07.1]}
54. Kxe3 {[%clk 0:00:53.7]} 54... Rb5 {[%clk 0:00:07.2]} 55. Ke4 {[%clk
0:00:53.1]} 55... Rxa5 {[%clk 0:00:07]} 56. g4 {[%clk 0:00:54]} 56... Kb7 {[%clk
0:00:06.3]} 57. Rh1 {[%clk 0:00:52.7]} 57... h5 {[%clk 0:00:05.5]} 58. gxh5
{[%clk 0:00:51.9]} 58... gxh5 {[%clk 0:00:05.8]} 59. f5 {[%clk 0:00:52.1]} 59...
Kc8 {[%clk 0:00:03.8]} 60. Rxh5 {[%clk 0:00:49.3]} 60... Kd8 {[%clk 0:00:04.1]}
61. Rh7 {[%clk 0:00:48.6]} 61... Ra1 {[%clk 0:00:03.4]} 62. Ke5 {[%clk
0:00:48.1]} 62... a5 {[%clk 0:00:02.4]} 63. f6 {[%clk 0:00:47.5]} 63... Rf1
{[%clk 0:00:01.6]} 64. Ke6 {[%clk 0:00:45.9]} 64... Re1+ {[%clk 0:00:01.6]} 65.
Kd5 {[%clk 0:00:44.3]} 65... Rf1 {[%clk 0:00:01.8]} 66. Rh8+ {[%clk 0:00:43.2]}
66... Kd7 {[%clk 0:00:01.7]} 67. Rh7+ {[%clk 0:00:43.6]} 67... Kd8 {[%clk
0:00:02.3]} 68. Ke6 {[%clk 0:00:42.1]} 68... Re1+ {[%clk 0:00:02]} 69. Kf5
{[%clk 0:00:39.1]} 69... Rf1+ {[%clk 0:00:02.2]} 70. Kg6 {[%clk 0:00:38.9]}
70... a4 {[%clk 0:00:02.9]} 71. Rh8+ {[%clk 0:00:36.8]} 71... Kd7 {[%clk
0:00:03]} 72. f7 {[%clk 0:00:35.7]} 72... a3 {[%clk 0:00:02.7]} 73. f8=Q {[%clk
0:00:34]} 73... Rxf8 {[%clk 0:00:02.1]} 74. Rxf8 {[%clk 0:00:34.9]} 74... Kc6
{[%clk 0:00:02.3]} 75. Ra8 {[%clk 0:00:34.1]} 75... Kb5 {[%clk 0:00:02.4]} 76.
Rxa3 {[%clk 0:00:33.5]} 76... Kb4 {[%clk 0:00:02.9]} 77. Ra7 {[%clk 0:00:32.5]}
77... c5 {[%clk 0:00:03.3]} 78. Kf5 {[%clk 0:00:33.3]} 78... c4 {[%clk
0:00:03.3]} 79. Ke4 {[%clk 0:00:33.6]} 79... c3 {[%clk 0:00:04.2]} 80. Kd3
{[%clk 0:00:33.5]} 80... Kb3 {[%clk 0:00:05.1]} 81. Rb7+ {[%clk 0:00:33.5]} 1-0

[Event "*** Titled Tuesday Blitz"]
[Site "Chess.com"]
[Date "2020.11.24"]
[Round "4"]
[White "Sviridov_Valery"]
[Black "mbojan"]
[Result "1/2-1/2"]
[WhiteElo "2827"]
[BlackElo "2701"]
[TimeControl "180+1"]
[EndTime "10:56:38 PST"]
[Termination "Game drawn by repetition"]

1. Nf3 {[%clk 0:03:00.9]} 1... g6 {[%clk 0:02:59.6]} 2. g3 {[%clk 0:03:00.3]}
2... Bg7 {[%clk 0:02:59.9]} 3. Bg2 {[%clk 0:03:01.2]} 3... Nf6 {[%clk
0:02:59.9]} 4. O-O {[%clk 0:03:01.8]} 4... O-O {[%clk 0:03:00.7]} 5. c4 {[%clk
0:03:02.4]} 5... d5 {[%clk 0:02:59.1]} 6. cxd5 {[%clk 0:03:00.8]} 6... Nxd5
{[%clk 0:02:59.7]} 7. Nc3 {[%clk 0:03:01.4]} 7... Nb6 {[%clk 0:03:00.2]} 8. d4
{[%clk 0:03:00.8]} 8... Nc6 {[%clk 0:02:59.2]} 9. Qc2 {[%clk 0:03:00.9]} 9...
Re8 {[%clk 0:02:42.6]} 10. Rd1 {[%clk 0:02:59.4]} 10... Bf5 {[%clk 0:02:30.7]}
11. Qb3 {[%clk 0:02:45.9]} 11... Na5 {[%clk 0:01:49.1]} 12. Qb5 {[%clk
0:02:45.2]} 12... Nac4 {[%clk 0:01:28.8]} 13. e4 {[%clk 0:02:43.5]} 13... Bg4
{[%clk 0:01:20.3]} 14. b3 {[%clk 0:02:29.5]} 14... Nd6 {[%clk 0:01:09.2]} 15.
Qd3 {[%clk 0:02:21.4]} 15... Nd7 {[%clk 0:01:02.2]} 16. e5 {[%clk 0:01:56.1]}
16... Nf5 {[%clk 0:01:00]} 17. Qe4 {[%clk 0:01:56.1]} 17... Bxf3 {[%clk
0:00:51.9]} 18. Bxf3 {[%clk 0:01:57]} 18... c6 {[%clk 0:00:39.8]} 19. Bg5 {[%clk
0:01:38.8]} 19... h6 {[%clk 0:00:35.8]} 20. Bf4 {[%clk 0:01:38.9]} 20... e6
{[%clk 0:00:35.2]} 21. h4 {[%clk 0:01:38.6]} 21... Nb6 {[%clk 0:00:29.4]} 22.
Qd3 {[%clk 0:01:32.6]} 22... Nd5 {[%clk 0:00:22.5]} 23. Nxd5 {[%clk 0:01:17.8]}
23... cxd5 {[%clk 0:00:23.4]} 24. Rac1 {[%clk 0:01:16.4]} 24... Qd7 {[%clk
0:00:23.8]} 25. h5 {[%clk 0:00:53]} 25... g5 {[%clk 0:00:23.4]} 26. Bd2 {[%clk
0:00:53.6]} 26... Rec8 {[%clk 0:00:20.9]} 27. Bg4 {[%clk 0:00:53.9]} 27... Bf8
{[%clk 0:00:20]} 28. f4 {[%clk 0:00:36.9]} 28... gxf4 {[%clk 0:00:19.9]} 29.
gxf4 {[%clk 0:00:35.3]} 29... Kh8 {[%clk 0:00:18.3]} 30. Bxf5 {[%clk 0:00:31.9]}
30... exf5 {[%clk 0:00:18.5]} 31. Kf2 {[%clk 0:00:32.8]} 31... Be7 {[%clk
0:00:18.7]} 32. Rxc8+ {[%clk 0:00:29.2]} 32... Rxc8 {[%clk 0:00:19.6]} 33. Rg1
{[%clk 0:00:29.4]} 33... Rg8 {[%clk 0:00:17.8]} 34. Rxg8+ {[%clk 0:00:26.2]}
34... Kxg8 {[%clk 0:00:18.7]} 35. Ke2 {[%clk 0:00:27]} 35... a6 {[%clk
0:00:18.8]} 36. a4 {[%clk 0:00:24.3]} 36... Kg7 {[%clk 0:00:18.7]} 37. Qg3+
{[%clk 0:00:23.9]} 37... Kh7 {[%clk 0:00:18.7]} 38. Qc3 {[%clk 0:00:24.8]} 38...
Qc6 {[%clk 0:00:18.1]} 39. Qd3 {[%clk 0:00:20.5]} 39... Qc8 {[%clk 0:00:18]} 40.
Qc3 {[%clk 0:00:18]} 40... Qxc3 {[%clk 0:00:17.7]} 41. Bxc3 {[%clk 0:00:18.9]}
41... Kg7 {[%clk 0:00:18.3]} 42. Ba5 {[%clk 0:00:18.2]} 42... Kf8 {[%clk
0:00:18.1]} 43. Bb6 {[%clk 0:00:17.8]} 43... Ke8 {[%clk 0:00:18.6]} 44. Kd3
{[%clk 0:00:18]} 44... Bb4 {[%clk 0:00:12.7]} 45. Bc5 {[%clk 0:00:15.6]} 45...
Be1 {[%clk 0:00:12.8]} 46. Ke2 {[%clk 0:00:15.1]} 46... Bg3 {[%clk 0:00:12.9]}
47. Kf3 {[%clk 0:00:15.7]} 47... Bh4 {[%clk 0:00:13.5]} 48. Bd6 {[%clk
0:00:14.8]} 48... Bd8 {[%clk 0:00:13.7]} 49. Bc5 {[%clk 0:00:15]} 49... Bc7
{[%clk 0:00:13.8]} 50. Bb4 {[%clk 0:00:14.8]} 50... Bb6 {[%clk 0:00:14.3]} 51.
Bc5 {[%clk 0:00:14.6]} 51... Ba5 {[%clk 0:00:14.8]} 52. Ke3 {[%clk 0:00:14.8]}
52... Be1 {[%clk 0:00:14.7]} 53. Bb6 {[%clk 0:00:13.1]} 53... Bh4 {[%clk
0:00:14.1]} 54. Bc7 {[%clk 0:00:13.2]} 54... Be7 {[%clk 0:00:14.2]} 55. Bb6
{[%clk 0:00:13.1]} 55... Bh4 {[%clk 0:00:12.3]} 56. Ba5 {[%clk 0:00:12.3]} 56...
Be7 {[%clk 0:00:12]} 57. Bd2 {[%clk 0:00:12.8]} 57... Kd7 {[%clk 0:00:11.9]} 58.
Kd3 {[%clk 0:00:13.7]} 58... Ke6 {[%clk 0:00:11.6]} 59. Be3 {[%clk 0:00:13.3]}
59... Kd7 {[%clk 0:00:11.4]} 60. Bf2 {[%clk 0:00:13.5]} 60... Ke8 {[%clk
0:00:11.6]} 61. Kc3 {[%clk 0:00:13.9]} 61... b5 {[%clk 0:00:11.5]} 62. Kd3
{[%clk 0:00:13.2]} 62... b4 {[%clk 0:00:11.4]} 63. Be1 {[%clk 0:00:12.2]} 63...
a5 {[%clk 0:00:11.8]} 64. Ke2 {[%clk 0:00:12.7]} 64... Kd7 {[%clk 0:00:12.3]}
65. Kf3 {[%clk 0:00:13.3]} 65... Ke6 {[%clk 0:00:12.8]} 66. Bf2 {[%clk 0:00:14]}
66... Bd8 {[%clk 0:00:13]} 67. Bg3 {[%clk 0:00:14.5]} 67... Bb6 {[%clk 0:00:13]}
68. Bf2 {[%clk 0:00:14.9]} 68... Bd8 {[%clk 0:00:12.7]} 69. Be3 {[%clk
0:00:15.4]} 69... Be7 {[%clk 0:00:13.1]} 70. Bd2 {[%clk 0:00:15]} 70... Bf8
{[%clk 0:00:13.6]} 71. Be3 {[%clk 0:00:15.6]} 71... Bg7 {[%clk 0:00:14]} 72. Bd2
{[%clk 0:00:16.3]} 72... Bf8 {[%clk 0:00:14]} 73. Be3 {[%clk 0:00:16.9]} 73...
Be7 {[%clk 0:00:14.6]} 74. Bf2 {[%clk 0:00:17.3]} 74... Bd8 {[%clk 0:00:14.5]}
1/2-1/2

[Event "*** Titled Tuesday Blitz"]
[Site "Chess.com"]
[Date "2020.11.24"]
[Round "4"]
[White "SamuelGhimpu2003"]
[Black "MrTattaglia"]
[Result "0-1"]
[WhiteElo "2628"]
[BlackElo "2827"]
[TimeControl "180+1"]
[EndTime "10:56:39 PST"]
[Termination "MrTattaglia won by resignation"]

1. d4 {[%clk 0:03:00.9]} 1... Nf6 {[%clk 0:02:43.7]} 2. Nc3 {[%clk 0:03:00.9]}
2... d5 {[%clk 0:02:39.1]} 3. Bf4 {[%clk 0:03:00.8]} 3... a6 {[%clk 0:02:35.8]}
4. e3 {[%clk 0:02:59.2]} 4... c5 {[%clk 0:02:32.9]} 5. dxc5 {[%clk 0:02:56.7]}
5... e6 {[%clk 0:02:28.1]} 6. Na4 {[%clk 0:02:54.8]} 6... Bxc5 {[%clk
0:02:25.9]} 7. Nxc5 {[%clk 0:02:55.7]} 7... Qa5+ {[%clk 0:02:25.7]} 8. c3 {[%clk
0:02:56.6]} 8... Qxc5 {[%clk 0:02:20.8]} 9. Nf3 {[%clk 0:02:56.1]} 9... Qe7
{[%clk 0:02:19.8]} 10. Bd3 {[%clk 0:02:39.3]} 10... Nc6 {[%clk 0:02:19.2]} 11.
Ne5 {[%clk 0:02:38.1]} 11... O-O {[%clk 0:02:17.6]} 12. O-O {[%clk 0:02:37.3]}
12... h6 {[%clk 0:02:15.4]} 13. Bc2 {[%clk 0:02:31.7]} 13... Nxe5 {[%clk
0:02:14.9]} 14. Bxe5 {[%clk 0:02:32.6]} 14... Rd8 {[%clk 0:02:13]} 15. Qd4
{[%clk 0:02:23.7]} 15... Bd7 {[%clk 0:02:12.9]} 16. Qh4 {[%clk 0:01:42]} 16...
Bc6 {[%clk 0:02:11.2]} 17. g4 {[%clk 0:01:40.7]} 17... Rd7 {[%clk 0:02:05.7]}
18. g5 {[%clk 0:01:23]} 18... Ne4 {[%clk 0:02:05.4]} 19. Bxe4 {[%clk 0:00:55.9]}
19... dxe4 {[%clk 0:02:03.3]} 20. Bf6 {[%clk 0:00:52.8]} 20... hxg5 {[%clk
0:01:58.7]} 21. Bxe7 {[%clk 0:00:45.2]} 21... gxh4 {[%clk 0:01:57.7]} 22. Bxh4
{[%clk 0:00:46.1]} 22... Bb5 {[%clk 0:01:54.4]} 23. Rfd1 {[%clk 0:00:45.5]}
23... Bd3 {[%clk 0:01:54.3]} 24. Rd2 {[%clk 0:00:44.2]} 24... b5 {[%clk
0:01:50.3]} 25. Rad1 {[%clk 0:00:42.8]} 25... Rc8 {[%clk 0:01:48.9]} 26. f3
{[%clk 0:00:42.6]} 26... Rd5 {[%clk 0:01:46.7]} 27. fxe4 {[%clk 0:00:38.4]}
27... Bxe4 {[%clk 0:01:47.6]} 28. Rxd5 {[%clk 0:00:38.3]} 28... Bxd5 {[%clk
0:01:45.9]} 29. a3 {[%clk 0:00:38.5]} 29... f6 {[%clk 0:01:45.8]} 30. Rd4 {[%clk
0:00:35.2]} 30... g5 {[%clk 0:01:37.2]} 31. Bg3 {[%clk 0:00:33.5]} 31... Kf7
{[%clk 0:01:32.9]} 32. Kf2 {[%clk 0:00:31.8]} 32... a5 {[%clk 0:01:24.2]} 33. a4
{[%clk 0:00:22.8]} 33... Rc5 {[%clk 0:01:11.6]} 34. e4 {[%clk 0:00:14.8]} 34...
Bb3 {[%clk 0:00:56]} 35. Bd6 {[%clk 0:00:14.8]} 35... Rc6 {[%clk 0:00:51.6]} 36.
axb5 {[%clk 0:00:14.7]} 36... Rb6 {[%clk 0:00:49.4]} 37. c4 {[%clk 0:00:12.7]}
37... e5 {[%clk 0:00:49.3]} 38. Bc5 {[%clk 0:00:07.4]} 38... Rb7 {[%clk
0:00:41.2]} 39. Rd6 {[%clk 0:00:07.8]} 39... Bxc4 {[%clk 0:00:41.1]} 40. b6
{[%clk 0:00:08.4]} 40... Bb5 {[%clk 0:00:32.2]} 41. Ke3 {[%clk 0:00:08.7]} 41...
Kg6 {[%clk 0:00:30.5]} 42. Rd8 {[%clk 0:00:08.5]} 42... Rh7 {[%clk 0:00:28.9]}
43. Rb8 {[%clk 0:00:07]} 43... Bc6 {[%clk 0:00:28.9]} 44. Rc8 {[%clk 0:00:04.2]}
44... Rh3+ {[%clk 0:00:27.2]} 45. Kd2 {[%clk 0:00:04.1]} 45... Bxe4 {[%clk
0:00:27.5]} 46. Rc7 {[%clk 0:00:03.5]} 46... Rb3 {[%clk 0:00:22.5]} 47. Kc1
{[%clk 0:00:04.1]} 47... g4 {[%clk 0:00:20.2]} 48. Rc8 {[%clk 0:00:03.4]} 48...
Bf3 {[%clk 0:00:18.7]} 49. Rf8 {[%clk 0:00:03.7]} 49... a4 {[%clk 0:00:16.7]}
50. Kc2 {[%clk 0:00:04.1]} 50... Be4+ {[%clk 0:00:15.7]} 51. Kc1 {[%clk
0:00:04.2]} 51... Bg2 {[%clk 0:00:15.6]} 52. Kc2 {[%clk 0:00:03.9]} 52... Bd5
{[%clk 0:00:15]} 53. Kc1 {[%clk 0:00:03.7]} 53... Be4 {[%clk 0:00:15.2]} 54. Re8
{[%clk 0:00:01.4]} 54... Rb5 {[%clk 0:00:13.7]} 55. Be3 {[%clk 0:00:01.5]} 55...
f5 {[%clk 0:00:11.8]} 56. Rc8 {[%clk 0:00:01.9]} 56... f4 {[%clk 0:00:11.7]} 57.
Bc5 {[%clk 0:00:02.6]} 57... Kf5 {[%clk 0:00:11.1]} 58. Rf8+ {[%clk 0:00:02.4]}
58... Kg6 {[%clk 0:00:10.9]} 59. Bf2 {[%clk 0:00:02.2]} 59... Bd5 {[%clk
0:00:07.2]} 60. Rc8 {[%clk 0:00:02.4]} 60... Kf5 {[%clk 0:00:07]} 61. Kc2 {[%clk
0:00:02]} 61... e4 {[%clk 0:00:06.1]} 62. Bd4 {[%clk 0:00:01.4]} 62... e3 {[%clk
0:00:06.1]} 63. Kd3 {[%clk 0:00:01.2]} 63... Rb3+ {[%clk 0:00:06.3]} 64. Ke2
{[%clk 0:00:01.6]} 64... Ke4 {[%clk 0:00:05.3]} 65. Ke1 {[%clk 0:00:02.5]} 65...
Kxd4 {[%clk 0:00:05]} 0-1